fUST/lending_fUST_20240829
["ID","MTS","AMOUNT","RATE_DAILY","PERIOD"]
[336476408,1724863849311,-500.0,0.00019834,2]
[336476409,1724863849321,-500.0,0.00019834,2]
[336476410,1724863849331,-559.91,0.00019834,2]
[336476411,1724863849342,-500.0,0.00019834,2]
[336476412,1724863849352,-455.24407392,0.00019834,2]
[336476413,1724863849363,-703.1,0.00019834,2]
[336476414,1724863849373,-500.0,0.00019834,2]
[336476415,1724863849383,-500.0,0.00019834,2]
[336476416,1724863849393,-500.0,0.00019834,2]
[336476417,1724863849405,-500.0,0.00019834,2]
[336476418,1724863849415,-1084.29,0.00019834,2]
[336476419,1724863849426,-500.0,0.00019834,2]
[336476420,1724863849436,-500.0,0.00019834,2]
[336476421,1724863849446,-500.0,0.00019834,2]
[336476422,1724863849456,-500.0,0.00019834,2]
[336476423,1724863849466,-500.0,0.00019834,2]
[336476424,1724863849476,-500.0,0.00019834,2]
[336476425,1724863849486,-501.31729394,0.00019834,2]
[336476426,1724863849497,-500.0,0.00019834,2]
[336476427,1724863849507,-408.57184321,0.00019834,2]
[336476428,1724863849697,-500.0,0.0001957,2]
[336476429,1724863849707,-91.42815679,0.00019834,2]
[336476430,1724863849716,-500.0,0.00019834,2]
[336476431,1724863849726,-500.0,0.00019834,2]
[336476432,1724863849735,-500.0,0.00019834,2]
[336476433,1724863849744,-500.0,0.00019834,2]
[336476434,1724863849754,-500.0,0.00019834,2]
[336476435,1724863849764,-500.0,0.00019834,2]
[336476437,1724863849774,-500.0,0.00019834,2]
[336476439,1724863849784,-500.0,0.00019834,2]
[336476441,1724863849797,-2165.87,0.00019834,2]
[336476442,1724863849807,-500.0,0.00019834,2]
[336476443,1724863849817,-500.0,0.00019834,2]
[336476444,1724863849827,-500.0,0.00019834,2]
[336476445,1724863849837,-500.0,0.00019834,2]
[336476446,1724863849847,-502.61032171,0.00019834,2]
[336476447,1724863849856,-500.85865272,0.00019834,2]
[336476448,1724863849866,-500.0,0.00019834,2]
[336476449,1724863849875,-1230.1,0.00019834,2]
[336476450,1724863849885,-500.0,0.00019834,2]
[336476451,1724863849895,-531.46,0.00019834,2]
[336476452,1724863849905,-500.0,0.00019834,2]
[336476453,1724863849918,-501.69502549,0.00019834,2]
[336476454,1724863849928,-500.0,0.00019834,2]
[336476455,1724863849938,-502.70124044,0.00019834,2]
[336476456,1724863849947,-500.0,0.00019834,2]
[336476457,1724863849958,-500.0,0.00019834,2]
[336476458,1724863849967,-500.0,0.00019834,2]
[336476459,1724863849977,-500.0,0.00019834,2]
[336476460,1724863849988,-500.0,0.00019834,2]
[336476461,1724863849998,-500.0,0.00019834,2]
[336476462,1724863850007,-6474.16,0.00019834,2]
[336476463,1724863850017,-500.0,0.00019834,2]
[336476464,1724863850026,-500.71122413,0.00019837,2]
[336476465,1724863850037,-503.1577501,0.00019838,2]
[336476466,1724863850051,-503.66708578,0.00019838,2]
[336476467,1724863850065,-503.23028337,0.00019838,2]
[336476468,1724863850074,-500.0,0.00019838,2]
[336476469,1724863850085,-500.0,0.00019838,2]
[336476470,1724863850095,-321.24180579,0.00019838,2]
[336476476,1724864149864,500.0,0.00025,120]
[336476477,1724864150162,241.78,0.00025,120]
[336476483,1724864844156,-253.79445239,0.00014147,2]
[336476484,1724864844180,-161.330643,0.00014247,2]
[336476485,1724864844202,-518.01783209,0.00014247,2]
[336476486,1724864846124,-194.48216791,0.00014247,2]
[336476487,1724864846147,-246.888316,0.00017813,2]
[336476488,1724864846170,-1885.74276304,0.00017846,2]
[336476528,1724865032217,-9996.50055786,0.00017846,2]
[336476531,1724865032227,-246.888316,0.00017916,2]
[336476534,1724865032238,-172.176181,0.00018146,2]
[336476537,1724865032248,-172.176181,0.00018281,2]
[336476574,1724865032258,-172.176181,0.00018416,2]
[336476576,1724865032484,-172.176181,0.00018551,2]
[336476578,1724865032494,-172.176181,0.00018686,2]
[336476580,1724865032504,-172.176181,0.00018821,2]
[336476582,1724865032516,-354.530176,0.00018904,2]
[336476584,1724865032525,-500.0,0.00018954,2]
[336476586,1724865032536,-172.176181,0.00018956,2]
[336476589,1724865032546,-1000.0,0.00019,19]
[336476591,1724865032556,-2000.0,0.00019,2]
[336476593,1724865032565,-500.0,0.00019065,2]
[336476595,1724865032575,-172.176181,0.00019091,2]
[336476597,1724865032584,-500.0,0.00019118,2]
[336476598,1724865032594,-319.18608898,0.00019449,2]
[336476600,1724865032603,-8213.32417726,0.0001945,2]
[336476602,1724865032616,-3834.09181563,0.0001945,2]
[336476628,1724865038272,-500.0,0.00019449,2]
[336476630,1724865038282,-3383.82093431,0.0001945,2]
[336476646,1724865040322,-2000.0,0.0001944,2]
[336476647,1724865040333,-500.0,0.00019449,2]
[336476648,1724865040343,-1317.13547682,0.0001945,2]
[336476663,1724865043282,-455.4462283,0.0001945,2]
[336476664,1724865043397,-35282.70284178,0.0001945,2]
[336476665,1724865043410,-500.0,0.00019459,2]
[336476666,1724865043419,-196.68479237,0.00019459,2]
[336476667,1724865043433,-9631.48533483,0.0001946,2]
[336476668,1724865043446,-18709.167,0.0001946,2]
[336476683,1724865046171,-3275.93367387,0.0001946,2]
[336477291,1724865819472,242.9,0.00025,120]
[336477427,1724866026169,-750.0,0.00014247,2]
[336477428,1724866026191,-99.4782399,0.00017842,2]
[336477430,1724866036694,-147.4100761,0.00017842,2]
[336477431,1724866036717,-194.540244,0.00017847,2]
[336477432,1724866036740,-9503.95284537,0.00018136,2]
[336477433,1724866049101,-502.05287115,0.00018136,2]
[336477479,1724866232246,-172.176181,0.00018152,2]
[336477481,1724866232257,-172.176181,0.00018287,2]
[336477483,1724866232267,-172.176181,0.00018422,2]
[336477485,1724866232277,-172.176181,0.00018557,2]
[336477487,1724866232286,-500.0,0.00018635,2]
[336477489,1724866232296,-172.176181,0.00018692,2]
[336477491,1724866232305,-172.176181,0.00018827,2]
[336477493,1724866232315,-372.256685,0.00018904,2]
[336477495,1724866232325,-172.176181,0.00018963,2]
[336477497,1724866232335,-695.8347229,0.00019,2]
[336477499,1724866232345,-172.176181,0.00019098,2]
[336477501,1724866232355,-162.331416,0.00019178,2]
[336477502,1724866232365,-1252.23083387,0.0001933,2]
[336477535,1724866238430,-747.76916613,0.0001933,2]
[336477537,1724866238442,-464.94618865,0.00019349,2]
[336477539,1724866238453,-133.78464522,0.00019358,2]
[336477563,1724866239181,158.652831,0.00014247,2]
[336477569,1724866240571,-396.42535478,0.00019358,2]
[336477570,1724866240580,-607.81464106,0.00019358,2]
[336477641,1724866243289,-427.62535894,0.00019358,2]
[336477643,1724866243299,-500.0,0.00019358,2]
[336477644,1724866243310,-500.0,0.00019358,2]
[336477645,1724866243321,-527.32211411,0.00019358,2]
[336477646,1724866243330,-504.26,0.00019358,2]
[336477647,1724866243340,-500.0,0.00019358,2]
[336477648,1724866243350,-500.0,0.00019358,2]
[336477649,1724866243360,-500.0,0.00019358,2]
[336477650,1724866243370,-509.84,0.00019358,2]
[336477651,1724866243380,-500.0,0.00019358,2]
[336477652,1724866243390,-88888.0,0.00019359,2]
[336477653,1724866243399,-487.67935466,0.00019389,2]
[336477654,1724866243409,-4664.51572739,0.0001939,5]
[336477656,1724866243418,-50464.5662,0.0001939,2]
[336477658,1724866243428,-10000.0,0.000194,2]
[336477660,1724866243438,-50464.5662,0.00019428,2]
[336477662,1724866243449,-500.0,0.0001943,2]
[336477664,1724866243463,-500.0,0.00019438,2]
[336477665,1724866243474,-469.48796897,0.00019438,2]
[336477666,1724866243483,-500.0,0.00019438,2]
[336477667,1724866243493,-528.54,0.00019438,2]
[336477668,1724866243503,-500.0,0.00019438,2]
[336477669,1724866243513,-500.0,0.00019438,2]
[336477670,1724866243522,-500.0,0.00019438,2]
[336477671,1724866243532,-500.0,0.00019438,2]
[336477672,1724866243542,-500.0,0.00019438,2]
[336477673,1724866243552,-500.0,0.00019438,2]
[336477674,1724866243561,-500.0,0.00019438,2]
[336477675,1724866243570,-500.0,0.00019438,2]
[336477676,1724866243580,-500.0,0.00019438,2]
[336477677,1724866243589,-500.0,0.00019438,2]
[336477678,1724866243599,-500.0,0.00019438,2]
[336477679,1724866243610,-500.0,0.00019438,2]
[336477680,1724866243620,-500.0,0.00019438,2]
[336477681,1724866243630,-500.0,0.00019438,2]
[336477682,1724866243641,-1136.93,0.00019438,2]
[336477683,1724866243650,-500.0,0.00019438,2]
[336477684,1724866243660,-500.0,0.00019438,2]
[336477685,1724866243670,-500.0,0.00019438,2]
[336477686,1724866243680,-500.0,0.00019438,2]
[336477687,1724866243694,-1040.99,0.00019438,2]
[336477688,1724866243704,-500.0,0.00019438,2]
[336477689,1724866243714,-500.0,0.00019438,2]
[336477690,1724866243723,-520.52677227,0.00019438,2]
[336477691,1724866243734,-500.0,0.00019438,2]
[336477692,1724866243743,-500.0,0.00019438,2]
[336477693,1724866243753,-500.0,0.00019438,2]
[336477694,1724866243763,-759.07,0.00019438,2]
[336477695,1724866243773,-500.0,0.00019438,2]
[336477696,1724866243782,-536.12,0.00019438,2]
[336477697,1724866243792,-500.0,0.00019438,2]
[336477698,1724866243801,-500.0,0.00019438,2]
[336477699,1724866243812,-500.0,0.00019438,2]
[336477700,1724866243821,-500.0,0.00019438,2]
[336477701,1724866243831,-500.0,0.00019438,2]
[336477702,1724866243841,-500.0,0.00019438,2]
[336477703,1724866243850,-515.51,0.00019438,2]
[336477704,1724866243860,-500.0,0.00019438,2]
[336477705,1724866243870,-500.0,0.00019438,2]
[336477706,1724866243880,-825.23,0.00019438,2]
[336477707,1724866243891,-500.0,0.00019438,2]
[336477708,1724866243901,-500.0,0.00019438,2]
[336477709,1724866243911,-500.0,0.00019438,2]
[336477710,1724866243921,-513.25,0.00019438,2]
[336477711,1724866243931,-500.0,0.00019438,2]
[336477712,1724866243940,-500.0,0.00019438,2]
[336477713,1724866243950,-500.0,0.00019438,2]
[336477715,1724866243960,-540.45,0.00019438,2]
[336477717,1724866243970,-500.0,0.00019438,2]
[336477718,1724866243980,-500.0,0.00019438,2]
[336477719,1724866243991,-500.0,0.00019438,2]
[336477720,1724866244000,-500.0,0.00019438,2]
[336477721,1724866244011,-644.51,0.00019438,2]
[336477722,1724866244020,-500.0,0.00019438,2]
[336477723,1724866244030,-500.0,0.00019438,2]
[336477724,1724866244040,-500.0,0.00019438,2]
[336477725,1724866244050,-1045.36,0.00019438,2]
[336477726,1724866244062,-500.0,0.00019438,2]
[336477727,1724866244072,-1127.59,0.00019438,2]
[336477728,1724866244082,-500.0,0.00019438,2]
[336477729,1724866244096,-500.0,0.00019438,2]
[336477730,1724866244108,-500.0,0.00019438,2]
[336477731,1724866244118,-500.0,0.00019438,2]
[336477732,1724866244128,-500.0,0.00019438,2]
[336477733,1724866244138,-500.0,0.00019438,2]
[336477734,1724866244148,-500.0,0.00019438,2]
[336477735,1724866244158,-500.0,0.00019438,2]
[336477736,1724866244168,-513.43859334,0.00019438,2]
[336477737,1724866244180,-500.0,0.00019438,2]
[336477738,1724866244190,-500.0,0.00019438,2]
[336477739,1724866244200,-500.0,0.00019438,2]
[336477740,1724866244209,-1985.38,0.00019438,2]
[336477741,1724866244219,-500.0,0.00019438,2]
[336477742,1724866244228,-500.0,0.00019438,2]
[336477743,1724866244238,-500.0,0.00019438,2]
[336477744,1724866244247,-500.0,0.00019438,2]
[336477745,1724866244258,-514.21811915,0.00019438,2]
[336477746,1724866244268,-388.32904926,0.00019438,2]
[336477747,1724866244278,-500.0,0.00019438,2]
[336477748,1724866244287,-500.0,0.00019438,2]
[336477749,1724866244297,-500.0,0.00019438,2]
[336477750,1724866244309,-500.0,0.00019438,2]
[336477751,1724866244319,-500.0,0.00019438,2]
[336477752,1724866244329,-500.0,0.00019438,2]
[336477753,1724866244339,-500.0,0.00019438,2]
[336477754,1724866244348,-500.0,0.00019438,2]
[336477755,1724866244359,-500.0,0.00019438,2]
[336477756,1724866244369,-5934.65,0.00019438,2]
[336477757,1724866244379,-527.87,0.00019438,2]
[336477758,1724866244389,-50464.5662,0.00019449,2]
[336477759,1724866244398,-597.15,0.00019449,2]
[336477760,1724866244408,-500.0,0.00019449,2]
[336477761,1724866244418,-500.0,0.00019449,2]
[336477762,1724866244428,-500.0,0.00019449,2]
[336477763,1724866244438,-500.0,0.00019449,2]
[336477764,1724866244449,-500.0,0.00019449,2]
[336477765,1724866244458,-500.0,0.00019449,2]
[336477766,1724866244468,-1397.63463066,0.00019449,2]
[336477767,1724866244478,-500.0,0.00019449,2]
[336477768,1724866244487,-503.42618373,0.00019449,2]
[336477769,1724866244497,-500.0,0.00019449,2]
[336477770,1724866244507,-335.44095325,0.00019449,2]
[336477771,1724866244522,-457.11904675,0.00019449,2]
[336477772,1724866244531,-133.50595325,0.00019449,2]
[336477794,1724866246681,-572.27,0.00019438,2]
[336477795,1724866246695,-366.49404675,0.00019449,2]
[336477796,1724866246705,-500.0,0.00019449,2]
[336477797,1724866246715,-500.0,0.00019449,2]
[336477798,1724866246724,-500.0,0.00019449,2]
[336477799,1724866246736,-502.4499899,0.00019449,2]
[336477800,1724866246746,-500.0,0.00019449,2]
[336477801,1724866246756,-500.0,0.00019449,2]
[336477802,1724866246767,-500.0,0.00019449,2]
[336477803,1724866246778,-500.0,0.00019449,2]
[336477804,1724866246787,-500.0,0.00019449,2]
[336477805,1724866246797,-500.0,0.00019449,2]
[336477806,1724866246808,-500.0,0.00019449,2]
[336477807,1724866246822,-500.0,0.00019449,2]
[336477808,1724866246831,-500.0,0.00019449,2]
[336477809,1724866246841,-500.0,0.00019449,2]
[336477810,1724866246851,-500.0,0.00019449,2]
[336477811,1724866246861,-571.74,0.00019449,2]
[336477812,1724866246870,-500.0,0.00019449,2]
[336477813,1724866246881,-539.1,0.00019449,2]
[336477814,1724866246890,-500.0,0.00019449,2]
[336477815,1724866246902,-500.0,0.00019449,2]
[336477816,1724866246912,-500.0,0.00019449,2]
[336477817,1724866246922,-500.0,0.00019449,2]
[336477818,1724866246933,-500.0,0.00019449,2]
[336477819,1724866246944,-500.0,0.00019449,2]
[336477820,1724866246954,-691.84,0.00019449,2]
[336477821,1724866246964,-500.0,0.00019449,2]
[336477822,1724866246974,-500.0,0.00019449,2]
[336477823,1724866246985,-500.0,0.00019449,2]
[336477824,1724866246994,-500.0,0.00019449,2]
[336477825,1724866247004,-500.0,0.00019449,2]
[336477826,1724866247014,-500.0,0.00019449,2]
[336477827,1724866247024,-500.0,0.00019459,2]
[336477828,1724866247033,-500.0,0.00019459,2]
[336477829,1724866247044,-500.0,0.00019459,2]
[336477830,1724866247054,-500.0,0.00019459,2]
[336477831,1724866247067,-500.0,0.00019459,2]
[336477832,1724866247077,-500.0,0.00019459,2]
[336477833,1724866247086,-500.0,0.00019459,2]
[336477834,1724866247095,-500.0,0.00019459,2]
[336477835,1724866247107,-500.0,0.00019459,2]
[336477836,1724866247116,-500.0,0.00019459,2]
[336477837,1724866247129,-500.0,0.00019459,2]
[336477838,1724866247139,-500.0,0.00019459,2]
[336477839,1724866247150,-500.0,0.00019459,2]
[336477840,1724866247160,-500.0,0.00019459,2]
[336477841,1724866247169,-500.0,0.00019459,2]
[336477842,1724866247179,-500.0,0.00019459,2]
[336477843,1724866247189,-500.0,0.00019459,2]
[336477844,1724866247200,-500.0,0.00019459,2]
[336477845,1724866247210,-500.0,0.00019459,2]
[336477846,1724866247219,-500.0,0.00019459,2]
[336477847,1724866247229,-649.45824325,0.00019459,2]
[336477848,1724866247238,-503.16704548,0.00019459,2]
[336477849,1724866247247,-500.0,0.00019459,2]
[336477850,1724866247257,-500.0,0.00019459,2]
[336477851,1724866247268,-500.0,0.00019459,2]
[336477852,1724866247278,-1000.0,0.00019459,2]
[336477853,1724866247288,-500.0,0.00019459,2]
[336477854,1724866247298,-500.0,0.00019459,2]
[336477855,1724866247312,-500.0,0.00019459,2]
[336477856,1724866247324,-500.0,0.00019459,2]
[336477857,1724866247333,-500.0,0.00019459,2]
[336477858,1724866247343,-500.0,0.00019459,2]
[336477859,1724866247353,-500.0,0.00019459,2]
[336477860,1724866247365,-500.0,0.00019459,2]
[336477861,1724866247375,-500.0,0.00019459,2]
[336477862,1724866247384,-278.70042497,0.00019459,2]
[336477863,1724866247394,-500.0,0.00019459,2]
[336477864,1724866247404,-645.4257431,0.00019459,2]
[336477865,1724866247414,-500.0,0.00019459,2]
[336477866,1724866247424,-500.0,0.00019459,2]
[336477867,1724866247434,-403.05770211,0.00019459,2]
[336477868,1724866247444,-500.0,0.00019459,2]
[336477869,1724866247453,-500.0,0.00019459,2]
[336477870,1724866247463,-500.0,0.00019459,2]
[336477871,1724866247472,-500.0,0.00019459,2]
[336477872,1724866247482,-500.0,0.00019459,2]
[336477873,1724866247493,-500.0,0.00019459,2]
[336477874,1724866247503,-500.0,0.00019459,2]
[336477875,1724866247513,-500.0,0.00019459,2]
[336477876,1724866247523,-693.4,0.00019459,2]
[336477877,1724866247533,-500.0,0.00019459,2]
[336477878,1724866247543,-500.0,0.00019459,2]
[336477879,1724866247553,-500.0,0.00019459,2]
[336477880,1724866247566,-500.0,0.00019459,2]
[336477881,1724866247576,-500.0,0.00019459,2]
[336477882,1724866247585,-1023.34,0.00019459,2]
[336477883,1724866247595,-500.0,0.00019459,2]
[336477884,1724866247605,-500.0,0.00019459,2]
[336477885,1724866247615,-984.67,0.00019459,2]
[336477886,1724866247624,-500.0,0.00019459,2]
[336477887,1724866247633,-500.0,0.00019459,2]
[336477888,1724866247643,-500.0,0.00019459,2]
[336477889,1724866247654,-500.0,0.00019459,2]
[336477890,1724866247664,-500.0,0.00019459,2]
[336477891,1724866247674,-460.51634926,0.00019459,2]
[336477892,1724866247686,-500.0,0.00019459,2]
[336477893,1724866247696,-500.0,0.00019459,2]
[336477894,1724866247706,-500.0,0.00019459,2]
[336477895,1724866247717,-654.56,0.00019459,2]
[336477896,1724866247727,-500.0,0.00019459,2]
[336477897,1724866247737,-500.0,0.00019459,2]
[336477898,1724866247746,-500.0,0.00019459,2]
[336477899,1724866247755,-500.0,0.00019459,2]
[336477900,1724866247767,-500.0,0.00019459,2]
[336477901,1724866247777,-500.0,0.00019459,2]
[336477902,1724866247976,-500.0,0.00019459,2]
[336477903,1724866247987,-500.0,0.00019459,2]
[336477904,1724866247998,-500.0,0.00019459,2]
[336477905,1724866248009,-500.0,0.00019459,2]
[336477906,1724866248019,-500.0,0.00019459,2]
[336477907,1724866248029,-532.0133485,0.00019459,2]
[336477908,1724866248039,-500.0,0.00019459,2]
[336477909,1724866248048,-500.0,0.00019459,2]
[336477910,1724866248058,-500.0,0.00019459,2]
[336477911,1724866248074,-500.0,0.00019459,2]
[336477912,1724866248084,-500.0,0.00019459,2]
[336477913,1724866248094,-500.0,0.00019459,2]
[336477914,1724866248106,-500.0,0.00019459,2]
[336477915,1724866248115,-500.0,0.00019459,2]
[336477916,1724866248126,-500.0,0.00019459,2]
[336477917,1724866248137,-500.0,0.00019459,2]
[336477918,1724866248147,-500.0,0.00019459,2]
[336477919,1724866248157,-500.0,0.00019459,2]
[336477920,1724866248167,-500.0,0.00019459,2]
[336477921,1724866248176,-500.0,0.00019459,2]
[336477922,1724866248186,-100929.1324,0.00019539,2]
[336477923,1724866248196,-1652.64782645,0.00019549,5]
[336477924,1724866248206,-500.0,0.00019549,2]
[336477925,1724866248216,-500.0,0.00019549,2]
[336477926,1724866248226,-500.0,0.00019549,2]
[336477927,1724866248236,-500.38641631,0.00019549,2]
[336477928,1724866248247,-500.0,0.00019549,2]
[336477929,1724866248257,-500.0,0.00019549,2]
[336477930,1724866248266,-500.0,0.00019549,2]
[336477931,1724866248276,-500.0,0.00019549,2]
[336477932,1724866248286,-500.0,0.00019549,2]
[336477933,1724866248296,-500.0,0.00019549,2]
[336477934,1724866248311,-500.0,0.00019549,2]
[336477935,1724866248321,-500.0,0.00019549,2]
[336477936,1724866248332,-500.0,0.00019549,2]
[336477937,1724866248342,-500.0,0.00019549,2]
[336477938,1724866248352,-500.0,0.00019549,2]
[336477939,1724866248362,-500.0,0.00019549,2]
[336477940,1724866248372,-500.0,0.00019549,2]
[336477941,1724866248382,-500.0,0.00019549,2]
[336477942,1724866248392,-500.0,0.00019549,2]
[336477943,1724866248403,-500.96186234,0.00019549,2]
[336477944,1724866248415,-500.0,0.00019549,2]
[336477945,1724866248427,-500.0,0.00019549,2]
[336477946,1724866248438,-641.69212765,0.00019549,2]
[336477947,1724866248450,-500.0,0.00019549,2]
[336477948,1724866248461,-500.0,0.00019549,2]
[336477950,1724866248472,-500.0,0.00019549,2]
[336477952,1724866248482,-500.0,0.00019549,2]
[336477953,1724866248493,-501.02,0.00019549,2]
[336477955,1724866248503,-500.0,0.00019549,2]
[336477957,1724866248515,-500.0,0.00019549,2]
[336477959,1724866248526,-539.62,0.00019549,2]
[336477961,1724866248536,-500.0,0.00019549,2]
[336477963,1724866248547,-263.87,0.00019549,2]
[336477964,1724866248559,-546.48,0.00019549,2]
[336477965,1724866248571,-500.0,0.00019549,2]
[336477967,1724866248580,-500.0,0.00019549,2]
[336477969,1724866248591,-500.0,0.00019549,2]
[336477970,1724866248602,-500.0,0.00019549,2]
[336477971,1724866248612,-500.0,0.00019549,2]
[336477973,1724866248623,-500.0,0.00019549,2]
[336477975,1724866248632,-500.0,0.00019549,2]
[336477976,1724866248642,-500.0,0.00019549,2]
[336477977,1724866248651,-500.0,0.00019549,2]
[336477978,1724866248661,-500.0,0.00019549,2]
[336477979,1724866248671,-500.0,0.00019549,2]
[336477980,1724866248683,-500.0,0.00019549,2]
[336477981,1724866248697,-500.0,0.00019549,2]
[336477982,1724866248707,-500.0,0.00019549,2]
[336477983,1724866248718,-500.0,0.00019549,2]
[336477984,1724866248730,-1056.19,0.00019549,2]
[336477985,1724866248740,-792.49,0.00019549,2]
[336477986,1724866248750,-500.0,0.00019549,2]
[336477987,1724866248761,-500.0,0.00019549,2]
[336477988,1724866248771,-500.0,0.00019549,2]
[336477989,1724866248782,-500.0,0.00019549,2]
[336477990,1724866248792,-610.85,0.00019549,2]
[336477991,1724866248802,-500.0,0.00019549,2]
[336477992,1724866248818,-500.0,0.00019549,2]
[336477993,1724866248828,-500.0,0.00019549,2]
[336477994,1724866248837,-500.0,0.00019549,2]
[336477995,1724866248847,-500.0,0.00019549,2]
[336477996,1724866248857,-500.0,0.00019549,2]
[336477997,1724866248868,-500.0,0.00019549,2]
[336477998,1724866248878,-500.0,0.00019549,2]
[336477999,1724866248887,-500.0,0.00019549,2]
[336478000,1724866248897,-500.0,0.00019549,2]
[336478001,1724866248907,-500.0,0.00019549,2]
[336478002,1724866248917,-544.21,0.00019549,2]
[336478003,1724866248926,-500.0,0.00019549,2]
[336478004,1724866248936,-1972.27512,0.00019549,2]
[336478005,1724866248946,-1972.27512,0.00019549,2]
[336478006,1724866248955,-191.519614,0.00019549,2]
[336478007,1724866248965,-191.519614,0.00019549,2]
[336478008,1724866248975,-500.0,0.00019549,2]
[336478009,1724866248985,-500.0,0.00019549,2]
[336478010,1724866248995,-621.591574,0.00019549,2]
[336478012,1724866249005,-621.591574,0.00019549,2]
[336478013,1724866249014,-500.0,0.00019549,2]
[336478014,1724866249024,-151.0,0.00019549,2]
[336478015,1724866249034,-500.0,0.00019549,2]
[336478016,1724866249044,-151.0,0.00019549,2]
[336478017,1724866249054,-424.75559775,0.00019549,2]
[336478018,1724866249067,-500.0,0.00019549,2]
[336478019,1724866249076,-500.0,0.00019549,2]
[336478020,1724866249087,-500.0,0.00019549,2]
[336478021,1724866249097,-500.0,0.00019549,2]
[336478022,1724866249109,-500.0,0.00019549,2]
[336478023,1724866249119,-500.0,0.00019549,2]
[336478024,1724866249129,-151.0,0.00019549,2]
[336478025,1724866249139,-151.0,0.00019549,2]
[336478026,1724866249149,-500.0,0.00019549,2]
[336478027,1724866249159,-1228.61596,0.00019549,2]
[336478028,1724866249169,-500.0,0.00019549,2]
[336478029,1724866249179,-1228.61596,0.00019549,2]
[336478030,1724866249188,-500.0,0.00019549,2]
[336478031,1724866249198,-151.0,0.00019549,2]
[336478032,1724866249207,-500.0,0.00019549,2]
[336478033,1724866249218,-500.0,0.00019549,2]
[336478034,1724866249227,-500.0,0.00019549,2]
[336478035,1724866249237,-522.51,0.00019549,2]
[336478036,1724866249247,-500.0,0.00019549,2]
[336478037,1724866249257,-500.0,0.00019549,2]
[336478038,1724866249268,-151.0,0.00019549,2]
[336478039,1724866249278,-500.0,0.00019549,2]
[336478040,1724866249287,-500.0,0.00019549,2]
[336478041,1724866249297,-151.0,0.00019549,2]
[336478042,1724866249309,-151.0,0.00019549,2]
[336478043,1724866249319,-151.0,0.00019549,2]
[336478044,1724866249330,-500.0,0.00019549,2]
[336478045,1724866249341,-165.973019,0.00019549,2]
[336478046,1724866249352,-500.0,0.00019549,2]
[336478047,1724866249362,-165.973019,0.00019549,2]
[336478048,1724866249371,-500.0,0.00019549,2]
[336478049,1724866249381,-796.390896,0.00019549,2]
[336478050,1724866249391,-500.0,0.00019549,2]
[336478051,1724866249402,-796.390896,0.00019549,2]
[336478052,1724866249412,-500.0,0.00019549,2]
[336478053,1724866249422,-500.0,0.00019549,2]
[336478054,1724866249431,-500.0,0.00019549,2]
[336478055,1724866249442,-747.646905,0.00019549,2]
[336478056,1724866249453,-747.646905,0.00019549,2]